Workbook

Sheet Início
B1: ACERCA DESTE MODELO
B2: Utilize este livro Orçamento de Eventos para controlar as Despesas e os Rendimentos de um evento.
B3: Preencha o Nome do Evento e introduza os detalhes nas tabelas nas folhas de cálculo Despesas e Rendimentos.
B4: As Despesas Totais e os Rendimentos Totais são calculadas automaticamente.
B5: O Resumo e o Gráfico dos Lucros e Perdas são atualizados automaticamente na folha de cálculo Resumo.
B6: Nota:
B7: Encontram-se instruções adicionais na coluna A de cada folha de cálculo. O texto encontra-se intencionalmente oculto. Para remover o texto, selecione a coluna A e, em seguida, selecione Eliminar. Para mostrar o texto, selecione a coluna A e, em seguida, mude a cor do tipo de letra.
B8: Para saber mais sobre as tabelas, prima Shift+F10 numa tabela, selecione a opção Tabela e, em seguida, selecione Texto Alternativo.

Sheet Despesas
A1: Introduza as Despesas Estimadas e Reais para cada categoria nas respetivas tabelas nesta folha de cálculo. As Despesas Totais são calculadas automaticamente. Existem instruções úteis sobre como utilizar esta folha de cálculo nas células desta coluna. Prima a Seta Para Baixo para começar.
A2: Introduza o Nome do Evento na célula à direita para personalizar o título desta e de outras folhas de cálculo. | B2: Orçamento do Evento Nome do Evento
A3: A etiqueta Despesas está na célula G3. | G3: Despesas
A4: A etiqueta Despesas Estimadas está na célula G4 e a etiqueta Despesas Reais está na célula H4. | G4: Despesas Estimadas | H4: Despesas Reais
A5: A etiqueta Despesas Totais está na célula à direita. As Despesas Totais Estimadas são calculadas automaticamente na célula G5. As Despesas Totais Reais e a barra de dados que representa as Despesas Totais Reais são atualizadas automaticamente na célula H5. A instrução seguinte está na célula A7. | B5: Despesas Totais | G5: =SUM(C12,C20,C26,C33,G12,G20,G25) -> 1,145.00 € | H5: =SUM(D12,D20,D26,D33,H12,H20,H25) -> 395.00 €
A7: Introduza as Despesas com o Local na tabela que começa na célula à direita e as Despesas com Catering na tabela que começa na célula F7. A instrução seguinte está na célula A14. | B7: Local | C7: Despesas Estimadas | D7: Despesas Reais | F7: Catering | G7: Despesas Estimadas | H7: Despesas Reais
B8: Taxas dos quartos e salas | C8: 500.00 € | D8: 250.00 € | F8: Alimentação
B9: Funcionários do local | C9: 400.00 € | D9: 50.00 € | F9: Bebidas
B10: Equipamento | F10: Roupa de Mesa
B11: Mesas e cadeiras | F11: Funcionários e gorjetas
B12: Total | C12: =SUBTOTAL(109,DespesasComOLocal[Despesas Estimadas]) -> 900.00 € | D12: =SUBTOTAL(109,DespesasComOLocal[Despesas Reais]) -> 300.00 € | F12: Total | G12: =SUBTOTAL(109,DespesasComCatering[Despesas Estimadas]) -> 0.00 € | H12: =SUBTOTAL(109,DespesasComCatering[Despesas Reais]) -> 0.00 €
A14: Introduza as Despesas com Decorações na tabela que começa na célula à direita e as Despesas com o Programa na tabela que começa na célula F14. A instrução seguinte está na célula A22. | B14: Decorações | C14: Despesas Estimadas | D14: Despesas Reais | F14: Programa | G14: Despesas Estimadas | H14: Despesas Reais
B15: Flores | C15: 200.00 € | D15: 50.00 € | F15: Intérpretes
B16: Velas | F16: Oradores
B17: Iluminação | F17: Viagens
B18: Balões | F18: Hotel
B19: Fornecimento de papel | F19: Outros
B20: Total | C20: =SUBTOTAL(109,DespesasComDecorações[Despesas Estimadas]) -> 200.00 € | D20: =SUBTOTAL(109,DespesasComDecorações[Despesas Reais]) -> 50.00 € | F20: Total | G20: =SUBTOTAL(109,DespesasComOPrograma[Despesas Estimadas]) -> 0.00 € | H20: =SUBTOTAL(109,DespesasComOPrograma[Despesas Reais]) -> 0.00 €
A22: Introduza as Despesas com Publicidade na tabela que começa na célula à direita e as Despesas com Prémios na tabela que começa na célula F22. A instrução seguinte está na célula A28. | B22: Publicidade | C22: Despesas Estimadas | D22: Despesas Reais | F22: Prémios | G22: Despesas Estimadas | H22: Despesas Reais
B23: Design gráfico | C23: 45.00 € | D23: 45.00 € | F23: Fitas/Condecorações/Troféus
B24: Fotocópias/Impressões | F24: Presentes
B25: Correio | F25: Total | G25: =SUBTOTAL(109,DespesasComPrémios[Despesas Estimadas]) -> 0.00 € | H25: =SUBTOTAL(109,DespesasComPrémios[Despesas Reais]) -> 0.00 €
B26: Total | C26: =SUBTOTAL(109,DespesasComPublicidade[Despesas Estimadas]) -> 45.00 € | D26: =SUBTOTAL(109,DespesasComPublicidade[Despesas Reais]) -> 45.00 €
A28: Introduza as Despesas Variadas na tabela que começa na célula à direita. | B28: Diversos | C28: Despesas Estimadas | D28: Despesas Reais
B29: Telefone
B30: Transportes
B31: Fornecimento de papelaria
B32: Serviços de fax
B33: Total | C33: =SUBTOTAL(109,DespesasDiversas[Despesas Estimadas]) -> 0.00 € | D33: =SUBTOTAL(109,DespesasDiversas[Despesas Reais]) -> 0.00 €

Sheet Rendimentos
A1: Introduza os Rendimentos Estimados e Reais para cada categoria nas respetivas tabelas nesta folha de cálculo. Os Rendimentos Totais são calculados automaticamente. Existem instruções úteis sobre como utilizar esta folha de cálculo nas células desta coluna. Prima a Seta Para Baixo para começar.
A2: O Nome do Evento é atualizado automaticamente na célula à direita. | B2: =Despesas!B2 -> Orçamento do Evento Nome do Evento
A3: A etiqueta Rendimentos está na célula F3. | F3: Rendimentos
A4: A etiqueta Rendimentos Estimados está na célula F4 e a etiqueta Rendimentos Reais está na célula G4. | F4: Rendimentos Estimados | G4: Rendimentos Reais
A5: A etiqueta Rendimentos Totais está na célula à direita. Os Rendimentos Estimados Totais são calculados automaticamente na célula F5. Os Rendimentos Reais Totais e a barra de dados que representa os Rendimentos Reais Totais são atualizadas automaticamente na célula G5. | B5: Rendimentos Totais | F5: =SUM(Entradas[[#Totals],[Rendimentos Estimados Totais]],AnúnciosNoPrograma[[#Totals],[Rendimentos Estimados Totais]],ExpositoresEVendedores[[#Totals],[Rendimentos Estimados Totais]],VendaDeItens[[#Totals],[Rendimentos Estimados Totais]]) -> 1,936.00 € | G5: =SUM(Entradas[[#Totals],[Rendimentos Reais Totais]],AnúnciosNoPrograma[[#Totals],[Rendimentos Reais Totais]],ExpositoresEVendedores[[#Totals],[Rendimentos Reais Totais]],VendaDeItens[[#Totals],[Rendimentos Reais Totais]]) -> 1,831.00 €
A6: A etiqueta Entradas está na célula à direita. | B6: Entradas
A7: Introduza o número de Entradas Estimados e Reais com o preço dos bilhetes na tabela que começa na célula à direita. Os Rendimentos Estimados e Reais das Entradas são calculados automaticamente. A instrução seguinte está na célula A12. | B7: Rendimentos Estimados | C7: Rendimentos Reais | D7: Tipo | E7: Preço | F7: Rendimentos Estimados Totais | G7: Rendimentos Reais Totais
B8: 300 | C8: 278 | D8: Adultos / | E8: 5.00 € | F8: =B8*E8 -> 1,500.00 € | G8: =C8*E8 -> 1,390.00 €
B9: 197 | C9: 195 | D9: Crianças / | E9: 2.00 € | F9: =B9*E9 -> 394.00 € | G9: =C9*E9 -> 390.00 €
B10: 42 | C10: 51 | D10: Outros / | E10: 1.00 € | F10: 42.00 € | G10: 51.00 €
F11: =SUBTOTAL(109,Entradas[Rendimentos Estimados Totais]) -> 1,936.00 € | G11: =SUBTOTAL(109,Entradas[Rendimentos Reais Totais]) -> 1,831.00 €
A12: A etiqueta Anúncios no programa está na célula à direita. | B12: Anúncios no programa
A13: Introduza o número de Anúncios no programa Estimados e Reais e o Preço dos anúncios na tabela que começa na célula à direita. Os Rendimentos Estimados e Reais dos Anúncios são calculados automaticamente. A instrução seguinte está na célula A18. | B13: Rendimentos Estimados | C13: Rendimentos Reais | D13: Tipo | E13: Preço | F13: Rendimentos Estimados Totais | G13: Rendimentos Reais Totais
D14: Capas / | F14: =B14*E14 -> 0.00 € | G14: =C14*E14 -> 0.00 €
D15: Meias-páginas / | F15: =B15*E15 -> 0.00 € | G15: =C15*E15 -> 0.00 €
D16: Quartos-de-páginas / | F16: 0.00 € | G16: 0.00 €
F17: =SUBTOTAL(109,AnúnciosNoPrograma[Rendimentos Estimados Totais]) -> 0.00 € | G17: =SUBTOTAL(109,AnúnciosNoPrograma[Rendimentos Reais Totais]) -> 0.00 €
A18: A etiqueta Apresentadores ou Fornecedores está na célula à direita. | B18: Expositores/vendedores
A19: Introduza o número de expositores e vendedores Estimados e Reais e os Preços dos stands na tabela que começa na célula à direita. Os Rendimentos Estimados e Reais são calculados automaticamente. A instrução seguinte está na célula A24. | B19: Rendimentos Estimados | C19: Rendimentos Reais | D19: Tipo | E19: Preço | F19: Rendimentos Estimados Totais | G19: Rendimentos Reais Totais
D20: Stands grandes / | F20: =B20*E20 -> 0.00 € | G20: =C20*E20 -> 0.00 €
D21: Stands médios / | F21: =B21*E21 -> 0.00 € | G21: =C21*E21 -> 0.00 €
D22: Stands pequenos / | F22: 0.00 € | G22: 0.00 €
F23: =SUBTOTAL(109,ExpositoresEVendedores[Rendimentos Estimados Totais]) -> 0.00 € | G23: =SUBTOTAL(109,ExpositoresEVendedores[Rendimentos Reais Totais]) -> 0.00 €
A24: A etiqueta Venda de itens está na célula à direita. | B24: Itens vendidos
A25: Introduza o número de Itens vendidos Estimados e Reais e os Preços dos itens na tabela que começa na célula à direita. Os Rendimentos Estimados e Reais são calculados automaticamente. | B25: Rendimentos Estimados | C25: Rendimentos Reais | D25: Tipo | E25: Preço | F25: Rendimentos Estimados Totais | G25: Rendimentos Reais Totais
D26: Itens / | F26: =B26*E26 -> 0.00 € | G26: =C26*E26 -> 0.00 €
D27: Itens / | F27: =B27*E27 -> 0.00 € | G27: =C27*E27 -> 0.00 €
D28: Itens / | F28: 0.00 € | G28: 0.00 €
D29: Itens / | F29: 0.00 € | G29: 0.00 €
F30: =SUBTOTAL(109,VendaDeItens[Rendimentos Estimados Totais]) -> 0.00 € | G30: =SUBTOTAL(109,VendaDeItens[Rendimentos Reais Totais]) -> 0.00 €

Sheet Resumo
A1: O Resumo e o Gráfico dos Lucros e Perdas a mostrar os Rendimentos e as Despesas Totais são atualizados automaticamente nesta folha de cálculo. Existem instruções úteis sobre como utilizar esta folha de cálculo nas células desta coluna. Prima a Seta Para Baixo para começar.
A2: O Nome do Evento é atualizado automaticamente na célula à direita. | B2: =Despesas!B2 -> Orçamento do Evento Nome do Evento
A3: A etiqueta Resumo dos Lucros e Perdas está na célula C3. A instrução seguinte está na célula A5. | C3: Resumo dos Lucros e Perdas
A5: A tabela Total que começa na célula à direita é atualizada automaticamente. A instrução seguinte está na célula A9. | B5: Total | C5: Rendimentos Estimados | D5: Rendimentos Reais
B6: Rendimentos totais | C6: =Rendimentos!F5 -> 1,936.00 € | D6: =Rendimentos!G5 -> 1,831.00 €
B7: Despesas totais | C7: =Despesas!G5 -> 1,145.00 € | D7: =Despesas!H5 -> 395.00 €
B8: Lucros (ou perdas) totais | C8: =C6-C7 -> 791.00 € | D8: =D6-D7 -> 1,436.00 €
A9: O gráfico de colunas agrupadas a mostrar uma comparação entre os valores Estimados e Reais dos Rendimentos Totais e das Despesas Totais está na célula à direita. | B9: O gráfico de colunas agrupadas a mostrar uma comparação entre os valores Estimados e Reais dos Rendimentos Totais e das Despesas Totais está nesta célula.
